bitfinex/quotes_ETHUSD_20250815
["timestamp","ask_amount","ask_price","bid_price","bid_amount"]
[1755271846643,2.41718703,4446.0,4443.5,2.25042777]
[1755271846787,2.24931911,4445.8,4444.9,2.24975898]
[1755271846989,4.43,4445.7,4445.3,2.24952969]
[1755271847201,4.427,4445.6,4445.3,2.24952969]
[1755271847422,1.932,4445.7,4443.7,2.25037693]
[1755271847643,4.427,4445.5,4443.9,2.25027565]
[1755271847942,1.932,4446.4,4445.9,2.24924577]
[1755271848098,6.357,4446.3,4444.0,2.71182502]
[1755271848417,1.932,4446.3,4445.9,2.24924616]
[1755271848625,6.353,4446.2,4443.5,2.25047822]
[1755271848949,4.66580011,4446.1,4443.2,5.25063017]
[1755271849250,1.932,4446.1,4444.5,2.24995297]
[1755271849407,0.46208872,4446.5,4444.4,2.2500225]
[1755271849738,5.399,4446.6,4446.5,2.24895985]
[1755271850087,9.814,4446.6,4446.5,2.24895985]
[1755271850527,9.809,4446.6,4446.5,2.24895985]
[1755271850699,0.4498,4447.5,4446.5,2.24895985]
[1755271850700,4.41,4446.7,4446.5,2.24895985]
[1755271851033,5.401,4448.2,4446.6,0.1128]
[1755271851248,5.401,4448.2,4447.4,2.24850474]
[1755271851249,0.1128,4447.5,4447.4,2.24850474]
[1755271851898,4.5178,4447.5,4447.4,2.24850474]
[1755271852239,4.405,4447.5,4447.4,2.24850474]
[1755271852694,4.405,4447.5,4447.1,0.1128]
[1755271852902,4.405,4447.5,4445.2,2.24961236]
[1755271852903,0.1128,4447.3,4446.7,0.1128]
[1755271853212,0.1128,4446.8,4446.6,2.24889231]
[1755271853416,4.393,4446.7,4446.4,2.24901043]
[1755271853734,4.393,4446.7,4446.1,0.1128]
[1755271854404,4.393,4446.7,4445.5,0.1128]
[1755271854405,0.1128,4446.2,4445.5,0.1128]
[1755271854737,0.4498,4446.4,4444.4,0.001]
[1755271854936,4.393,4446.7,4444.4,0.001]
[1755271854937,1.932,4446.1,4444.4,0.001]
[1755271855109,0.1128,4445.0,4444.4,0.1138]
[1755271855314,4.383,4444.9,4444.4,0.1138]
[1755271855512,4.383,4444.9,4444.7,2.2498521]
[1755271855827,1.932,4446.4,4445.3,2.2495357]
[1755271856033,4.4938,4446.0,4445.3,0.1128]
[1755271856244,4.4938,4446.0,4445.6,2.24941515]
[1755271856446,4.383,4445.9,4445.5,2.24941989]
[1755271856739,1.595,4446.0,4445.3,0.1128]
[1755271856940,0.57895116,4447.7,4445.8,0.1128]
[1755271857124,0.112,4448.4,4447.6,0.1128]
[1755271857325,4.414,4448.3,4448.2,2.24810035]
[1755271858114,4.414,4448.3,4447.9,0.1128]
[1755271858425,1.4822,4448.2,4446.7,3.0]
[1755271858623,1.4822,4448.2,4447.5,0.1128]
[1755271858851,4.404,4448.1,4446.9,2.24875756]
[1755271859018,1.932,4449.0,4448.3,2.2480473]
[1755271859347,4.402,4448.9,4448.3,2.24803514]
[1755271859545,0.002,4448.8,4448.3,2.24804346]
[1755271859847,6.33,4448.7,4447.1,3.0]
[1755271860147,6.33,4448.7,4446.3,3.0]
[1755271860375,6.33,4448.7,4446.3,2.24906101]
[1755271860519,0.002,4448.3,4447.9,2.24823566]
[1755271860711,1.4842,4448.3,4447.9,2.24823566]
[1755271860919,1.4842,4448.3,4446.5,3.0]
[1755271860920,0.002,4448.3,4448.2,2.24810035]
[1755271861573,0.002,4448.8,4448.2,2.24810035]
[1755271861780,1e-08,4448.8,4448.7,2.24784768]
[1755271861928,1e-08,4448.8,4448.7,2.27032615]
[1755271862138,1e-08,4448.8,4448.7,2.24784768]
[1755271862333,1e-08,4448.8,4448.7,2.24864768]
[1755271862571,1e-08,4448.8,4448.7,7.37262615]
[1755271862903,0.002,4451.0,4450.9,2.24673661]
[1755271863035,1e-08,4451.0,4450.9,2.26920397]
[1755271863395,1e-08,4452.4,4451.3,2.24653155]
[1755271863688,1e-08,4452.4,4452.3,2.24603014]
[1755271864232,1e-08,4452.7,4452.3,3.4840603]
[1755271864547,5.8508,4454.8,4453.5,2.24542494]
[1755271864729,4.4,4454.7,4453.5,2.24542494]
[1755271865779,6.328,4453.6,4449.8,0.4616]
[1755271865990,6.328,4453.6,4449.9,0.02247241]
[1755271865991,6.34,4453.5,4449.9,0.02247241]
[1755271866285,1.932,4453.5,4451.1,0.55]
[1755271866470,4.409,4453.4,4452.6,2.24584944]
[1755271866640,4.409,4453.4,4452.8,2.24577644]
[1755271866839,4.409,4453.4,4447.3,1.1262193]
[1755271867038,2.24578202,4452.8,4450.2,2.24709001]
[1755271867236,2.24594821,4452.5,4450.2,5.24709001]
[1755271867483,2.24593921,4452.5,4450.2,2.24709001]
[1755271867705,1.85270579,4452.4,4449.4,0.4732]
[1755271867977,1.85270579,4452.4,4450.2,0.4956709]
[1755271867978,4.402,4452.3,4450.2,0.4956709]
[1755271868187,4.86210579,4452.2,4449.4,0.4732]
[1755271868369,5.398,4452.7,4452.0,2.24618031]
[1755271868694,5.398,4452.7,4450.8,2.2467519]
[1755271868695,4.402,4452.6,4450.8,0.4732]
[1755271868897,0.112,4452.4,4451.8,0.112]
[1755271869090,0.112,4452.4,4451.9,2.24623119]
[1755271869291,0.112,4452.4,4451.8,0.112]
[1755271869495,4.401,4452.3,4451.8,0.112]
[1755271869711,1.3896,4452.2,4451.8,0.112]
[1755271869865,1.3896,4452.2,4450.3,2.24699626]
[1755271869866,5.398,4452.7,4452.6,2.24587881]
[1755271870065,5.398,4452.7,4451.1,3.0]
[1755271870066,5.398,4452.7,4452.1,0.112]
[1755271870328,0.112,4453.1,4452.4,0.112]
[1755271870620,0.002,4453.6,4453.5,2.24542494]
[1755271870913,0.002,4453.6,4453.5,2.26787918]
[1755271871200,2.26300794,4457.0,4455.2,2.2445493]
[1755271871201,4.409,4455.4,4455.2,2.2445493]
[1755271871404,0.002,4455.4,4454.8,0.112]
[1755271871609,4.407,4455.3,4455.2,2.24456814]
[1755271872113,0.002,4455.4,4455.3,2.24451776]
[1755271872464,0.002,4455.4,4455.3,5.24451776]
[1755271873363,0.002,4455.4,4455.3,5.35651776]
[1755271873571,0.002,4455.4,4455.3,0.112]
[1755271873813,0.002,4455.4,4455.3,2.35651776]
[1755271874773,0.002,4455.4,4455.3,0.112]
[1755271874975,0.002,4455.4,4453.0,4.392]
[1755271874976,6.2192,4455.4,4453.0,4.8652]
[1755271875177,6.2192,4455.4,4451.7,12.1287994]
[1755271875178,1.8322,4455.4,4453.2,2.24557621]
[1755271875378,1.8322,4455.4,4454.7,2.24478984]
[1755271875701,1.8322,4455.4,4454.1,2.24507488]
[1755271875702,1.8322,4455.4,4453.6,3.0]
[1755271875903,0.002,4455.4,4455.3,2.35651776]
[1755271876107,0.002,4455.4,4455.3,2.24451776]
[1755271876265,0.112,4456.7,4455.3,0.112]
[1755271876473,0.01930252,4457.0,4456.9,2.24371199]
[1755271876708,1.84950252,4457.0,4456.6,2.24384507]
[1755271876907,1.84950252,4457.0,4454.6,2.24485887]
[1755271876908,0.112,4456.8,4456.2,2.35605164]
[1755271877115,0.112,4456.8,4456.2,0.112]
[1755271877311,4.375,4456.7,4456.2,0.112]
[1755271877624,0.112,4456.4,4456.3,2.24401409]
[1755271877912,1.8302,4456.4,4456.1,0.112]
[1755271878106,0.112,4456.5,4455.8,0.112]
[1755271878321,1.8302,4456.3,4455.8,0.112]
[1755271878467,0.112,4456.0,4455.4,0.112]
[1755271878666,4.382,4455.9,4455.4,0.112]
[1755271878914,1.8302,4455.8,4455.6,2.24435996]
[1755271879097,1.8302,4455.8,4455.4,0.112]
[1755271879418,1.8302,4455.7,4455.4,0.112]
[1755271879911,1.3896,4456.8,4454.3,3.0]
[1755271880131,4.372,4456.5,4456.4,2.24396373]
[1755271880309,1.3896,4456.8,4454.7,3.0]
[1755271880641,4.38,4456.7,4454.9,5.24471929]
[1755271880926,1.8302,4456.6,4454.1,5.24512247]
[1755271881122,1.41210579,4456.6,4454.2,2.24507206]
[1755271881430,1.41210579,4456.6,4453.8,0.4732]
[1755271881431,0.4406,4456.5,4455.3,2.24446807]
[1755271881594,1.41210579,4456.4,4453.8,0.4732]
[1755271881934,0.4406,4456.3,4453.2,2.24557621]
[1755271882082,1.3896,4456.2,4453.0,0.4732]
[1755271882432,2.24482178,4454.7,4453.1,2.24562664]
[1755271882585,5.78110579,4454.6,4453.1,0.0008]
[1755271882926,1.3896,4454.6,4453.8,2.24524982]
[1755271883092,3.63447992,4454.6,4453.1,0.0008]
[1755271883290,4.364,4454.5,4453.3,2.24552578]
[1755271883521,1.3896,4454.6,4453.9,2.24521667]
[1755271883722,4.364,4454.4,4453.8,2.2452684]
[1755271883934,1.3896,4454.3,4453.1,0.0008]
[1755271884090,4.362,4454.2,4453.6,2.24533116]
[1755271884450,4.364,4454.1,4454.0,2.24516276]
[1755271884623,1.8302,4455.4,4453.3,0.02245525]
[1755271884924,4.363,4455.1,4455.0,2.24466891]
[1755271885239,6.1912,4455.1,4453.2,2.24557621]
[1755271885525,1.8302,4455.8,4453.4,2.24547536]
[1755271885693,1.8302,4455.8,4453.5,0.02245424]
[1755271886027,4.356,4455.7,4455.6,2.24436663]
[1755271886342,1.8302,4456.5,4454.1,0.4732]
[1755271886343,4.355,4455.9,4454.1,0.4732]
[1755271886538,1.8302,4455.7,4455.6,2.24436663]
[1755271886819,4.351,4455.8,4454.1,3.4732]
[1755271887024,1.8302,4456.4,4454.2,0.57245072]
[1755271887187,4.351,4456.0,4455.9,2.24421553]
[1755271887383,4.7916,4456.0,4455.9,2.24421553]
[1755271887603,6.1812,4456.0,4454.2,3.0]
[1755271887908,4.7846,4455.9,4454.5,2.24487314]
[1755271888108,1.3896,4455.8,4453.7,3.0]
[1755271888299,0.4406,4455.7,4453.6,0.55]
[1755271888703,0.4406,4455.7,4453.7,2.24532411]
[1755271888704,4.341,4455.6,4453.7,2.24532411]
[1755271888991,4.341,4455.6,4455.4,2.24445143]
[1755271889235,1.8302,4455.5,4454.2,2.24507206]
[1755271889387,4.336,4455.4,4454.2,2.24507206]
[1755271889584,4.336,4455.4,4453.8,2.24527369]
[1755271889815,4.336,4455.4,4454.4,2.24496551]
[1755271889980,0.112,4456.1,4455.9,2.24418746]
[1755271890181,4.328,4456.0,4455.9,2.24421553]
[1755271890385,1.8302,4456.0,4455.9,2.24421553]
[1755271890627,6.1572,4456.0,4455.9,2.24421553]
[1755271890795,6.1572,4456.0,4455.3,0.112]
[1755271890996,0.112,4455.6,4455.5,2.24441701]
[1755271891212,4.435,4455.6,4455.5,2.24441701]
[1755271891456,4.323,4455.6,4455.4,0.112]
[1755271891843,4.323,4455.6,4455.5,2.24441701]
[1755271892259,0.112,4456.0,4455.8,2.24425628]
[1755271892585,0.46445547,4455.9,4455.8,2.24425628]
[1755271892736,0.77196939,4456.7,4456.5,2.24391338]
[1755271892737,0.46445547,4456.6,4456.5,2.24391338]
[1755271892931,2.29465547,4456.6,4456.1,2.24411332]
[1755271893283,2.29465547,4456.5,4456.2,2.24405021]
[1755271893430,0.4654186,4456.4,4453.6,0.55]
[1755271893629,0.4654186,4456.3,4456.0,2.24412516]
[1755271893864,0.4654186,4456.3,4455.8,2.244216]
[1755271893865,0.4654186,4456.2,4456.1,2.2441148]
[1755271894173,5.7026,4456.2,4456.0,2.24415416]
[1755271894497,2.2957264,4456.1,4453.7,2.24529799]
[1755271894633,0.57721719,4455.9,4453.5,0.001]
[1755271894829,0.57721719,4455.5,4453.5,2.24642268]
[1755271895035,6.6037264,4455.4,4454.9,2.2446727]
[1755271895270,6.6037264,4455.4,4453.5,2.24642268]
[1755271895271,2.2957264,4455.3,4453.5,2.24642268]
[1755271895472,0.4655264,4455.2,4455.1,2.24461852]
[1755271895650,4.307,4455.2,4455.1,2.24461852]
[1755271895826,2.40741719,4455.9,4454.6,2.24482428]
[1755271895827,0.46561686,4455.8,4455.7,2.24431626]
[1755271896034,2.40741719,4456.6,4454.5,2.24492086]
[1755271896363,5.34702388,4456.5,4456.1,2.24410503]
[1755271896547,2.29940669,4456.4,4454.3,0.4732]
[1755271896898,1.04302388,4456.3,4455.9,2.24419922]
[1755271897045,0.57721719,4456.1,4454.0,2.24517287]
[1755271897230,4.304,4456.5,4453.7,0.4466]
[1755271897231,1.04302388,4456.0,4453.7,0.4466]
[1755271897436,1.04302388,4455.9,4455.7,2.24431137]
[1755271897707,6.59740669,4455.8,4455.6,2.24436612]
[1755271897978,2.29940669,4455.7,4454.6,2.24482201]
[1755271898132,0.46580669,4455.6,4453.5,3.001]
[1755271898337,0.46580669,4455.5,4455.4,2.24446668]
[1755271898564,2.29940669,4455.5,4455.4,2.24446668]
[1755271898779,2.29940669,4455.5,4455.4,2.24446738]
[1755271898780,0.46580669,4455.5,4455.4,2.24446738]
[1755271899075,4.288,4455.6,4454.7,2.24482007]
[1755271899370,4.286,4455.7,4454.7,5.24482007]
[1755271899579,4.286,4455.7,4455.6,2.24436663]
[1755271899781,0.46853797,4455.7,4455.6,2.24436663]
[1755271899930,0.77196939,4456.5,4455.4,2.24443888]
[1755271899931,0.57721719,4456.5,4456.3,2.24401409]
[1755271900131,0.77196939,4456.8,4456.7,2.24381268]
[1755271900132,4.85821719,4456.8,4456.7,2.24381268]
[1755271900352,1.04601251,4456.8,4456.7,2.24381268]
[1755271900683,0.01930252,4457.0,4456.9,2.24371199]
[1755271901098,0.48852882,4457.0,4456.9,2.24371199]
[1755271901235,0.01930252,4457.0,4456.9,2.24371199]
[1755271901679,4.29430252,4457.0,4456.9,2.24371199]
[1755271901830,4.76311564,4457.0,4456.9,2.24371199]
[1755271902235,0.48811564,4457.0,4456.9,2.24371199]
[1755271902453,0.002,4457.4,4457.1,2.24358503]
[1755271902650,0.002,4457.4,4457.3,0.112]
[1755271902848,0.002,4457.7,4457.3,0.1128]
[1755271903051,0.002,4457.7,4457.6,2.35535965]
[1755271904080,1e-08,4457.9,4457.8,2.243259]
[1755271904237,1e-08,4457.9,4457.8,5.355259]
[1755271904442,1e-08,4457.9,4457.8,3.847159]
[1755271904747,1e-08,4457.9,4457.8,5.801859]
[1755271905059,1e-08,4457.9,4457.8,6.847159]
[1755271905464,1e-08,4457.9,4457.8,5.905259]
[1755271905669,1e-08,4457.9,4457.8,7.345859]
[1755271905845,1e-08,4457.9,4457.8,6.351859]
[1755271906235,1e-08,4457.9,4457.8,5.355259]
[1755271906740,1e-08,4457.9,4457.8,5.801859]
[1755271907242,1e-08,4457.9,4457.8,5.355259]
[1755271907680,1e-08,4457.9,4457.8,2.355259]
[1755271908567,6.07960001,4457.9,4457.3,0.0008]
[1755271908764,0.112,4457.5,4457.3,0.0008]
[1755271909147,0.46565683,4457.8,4457.3,0.0008]
[1755271909342,1.36390001,4457.9,4457.3,0.0008]
[1755271909651,1.36390001,4457.9,4457.8,2.243259]
[1755271909854,1.83360001,4457.9,4457.3,0.0008]
[1755271910703,0.46565633,4458.1,4457.3,0.0008]
[1755271910704,1e-08,4458.1,4458.0,2.24315836]
[1755271910887,1.91421295,4460.3,4458.3,2.24300742]
[1755271910888,0.002,4458.4,4458.3,2.24300742]
[1755271912199,0.002,4458.8,4458.7,2.24280619]
[1755271912484,0.002,4459.3,4459.2,2.24255471]
[1755271913381,0.4717,4459.3,4459.2,2.24255471]
[1755271913793,0.002,4459.3,4459.2,2.24255471]
[1755271915494,1e-08,4459.6,4459.5,5.79240385]
[1755271916061,1e-08,4459.6,4459.5,7.73210385]
[1755271916462,1e-08,4459.6,4459.5,12.00010385]
[1755271916713,1e-08,4459.6,4459.5,7.73210385]
[1755271917008,1e-08,4461.8,4461.7,2.24129815]
[1755271918378,0.46970001,4461.8,4461.7,2.24129815]
[1755271918805,1.83360001,4461.8,4460.0,0.102]
[1755271918978,1.83360001,4461.8,4460.5,2.24185756]
[1755271919175,1.83360001,4461.8,4461.3,2.241471]
[1755271919176,0.112,4461.6,4461.3,2.241471]
[1755271919377,0.112,4461.6,4461.3,2.24148123]
[1755271919688,0.112,4461.6,4461.4,2.24144887]
[1755271919885,1e-08,4461.8,4461.7,2.24129815]
[1755271920211,1.8336,4461.7,4461.5,0.112]
[1755271920416,1.8336,4461.6,4461.3,0.112]
[1755271920621,2.24144887,4461.4,4461.3,0.112]
[1755271920920,1.9456,4461.4,4460.4,0.112]
[1755271921127,0.112,4460.8,4459.5,2.2423848]
[1755271921277,0.112,4460.8,4460.7,2.24180061]
[1755271921478,1.3639,4461.1,4460.6,0.112]
[1755271921728,1.38640579,4461.0,4458.5,2.24287838]
[1755271922016,1.38640579,4461.0,4459.5,2.24240093]
[1755271922186,1.38640579,4461.0,4459.9,2.24216494]
[1755271922187,4.264,4460.9,4459.9,2.24216494]
[1755271922390,1.3639,4461.0,4460.9,2.2417001]
[1755271922587,0.4697,4461.1,4461.0,5.24164985]
[1755271922788,1.3639,4461.6,4461.5,2.24139863]
[1755271923012,1.3639,4461.6,4459.8,2.79222559]
[1755271923013,6.0956,4461.6,4459.9,3.0]
[1755271923216,6.0956,4461.6,4461.5,0.0008]
[1755271923535,21.25027452,4461.6,4461.5,0.0008]
[1755271923711,24.80027452,4461.6,4461.5,0.0008]
[1755271923876,24.25027452,4461.6,4461.5,0.0008]
[1755271924081,11.33594839,4461.6,4461.5,0.0008]
[1755271924310,1.8336,4461.6,4461.5,0.0008]
[1755271924517,6.0926,4461.6,4461.5,0.0008]
[1755271924904,21.24727452,4461.6,4461.5,0.0008]
[1755271925090,6.0926,4461.6,4461.5,0.0008]
[1755271925311,8.33394839,4461.6,4461.5,0.0008]
[1755271925516,6.0926,4461.6,4461.5,0.0008]
[1755271925828,4.7227,4461.6,4461.5,2.24219863]
[1755271926313,4.253,4461.6,4461.5,0.0008]
[1755271926479,6.1648,4461.6,4461.5,0.0008]
[1755271927115,6.1598,4461.6,4461.5,0.0008]
[1755271927325,0.77196939,4463.9,4461.5,0.0008]
[1755271927543,0.4572,4464.0,4462.1,2.79109724]
[1755271927827,0.4572,4464.0,4461.6,1.8853]
[1755271927828,1.4546,4464.2,4462.5,3.55]
[1755271928139,1.4546,4464.2,4464.1,2.24009318]
[1755271928419,1.4546,4464.2,4462.2,1.8853]
[1755271928420,1.9118,4464.2,4462.2,1.8853]
[1755271928580,1.9118,4464.2,4462.5,3.0]
[1755271928777,0.002,4464.5,4464.4,2.23994265]
[1755271928985,4.362,4464.5,4464.4,2.23994265]
[1755271929182,1e-08,4464.5,4464.4,2.23994265]
[1755271929622,0.002,4465.4,4464.9,2.23969181]
[1755271930318,1.9138,4465.0,4462.7,0.55]
[1755271930619,1.93430579,4464.9,4462.6,1.4545]
[1755271930774,1.9118,4464.9,4462.9,0.55]
[1755271930978,0.4572,4464.8,4462.9,2.24066627]
[1755271931221,3.02250579,4464.7,4462.5,3.0]
[1755271931385,4.348,4464.6,4462.5,3.0]
[1755271931584,4.348,4464.6,4463.6,0.112]
[1755271931585,0.112,4464.3,4463.6,0.112]
[1755271932703,0.112,4464.3,4463.7,2.24028725]
[1755271932928,0.112,4464.3,4463.6,0.112]
[1755271933605,0.112,4463.7,4462.7,0.112]
[1755271933835,0.112,4463.7,4461.5,0.0008]
[1755271933836,0.112,4462.8,4462.0,0.112]
[1755271934197,4.332,4462.9,4462.8,2.24074572]
[1755271934938,4.327,4463.5,4463.4,2.2404445]
[1755271935236,4.8962,4464.2,4462.8,0.112]
[1755271935436,4.8962,4464.2,4462.5,0.55]
[1755271935738,4.439,4464.2,4463.9,2.24019044]
[1755271935923,4.439,4464.2,4463.7,2.24024653]
[1755271936231,4.439,4464.2,4464.1,2.24009318]
[1755271936443,4.327,4464.2,4463.9,0.112]
[1755271936595,4.8962,4464.2,4464.0,2.24009869]
[1755271937123,4.8962,4464.2,4463.5,0.112]
[1755271937639,4.439,4464.2,4464.1,2.24009318]
[1755271937821,4.327,4464.2,4464.1,2.24009318]
[1755271938023,0.112,4464.9,4464.8,2.23974198]
[1755271938234,0.002,4465.0,4464.9,2.23969181]
[1755271938551,0.002,4465.0,4464.9,2.22611323]
[1755271938848,0.77196939,4467.0,4465.8,2.23924044]
[1755271939012,1.61636173,4467.6,4465.8,2.23924044]
[1755271939013,4.304,4467.2,4465.8,2.23924044]
[1755271939395,4.32650579,4467.2,4465.8,2.23924044]
[1755271939629,4.32650579,4467.2,4464.9,6.1953]
[1755271939630,1.4546,4466.7,4464.5,4.309]
[1755271939809,0.4572,4466.4,4465.8,2.23924044]
[1755271940024,0.4572,4466.4,4464.3,0.55]
[1755271940025,4.307,4466.3,4464.3,0.55]
[1755271940246,0.02250579,4466.2,4464.2,1.4545]
[1755271940418,0.4572,4465.8,4465.0,2.23959281]
[1755271940620,0.4572,4465.8,4464.4,2.23994265]
[1755271940823,0.4572,4465.8,4464.2,5.7595]
[1755271940824,0.4572,4465.8,4464.2,4.305]
[1755271941029,0.4572,4465.8,4464.0,0.4308]
[1755271941362,2.23933603,4465.7,4464.8,2.2397376]
[1755271941509,0.4572,4465.6,4463.6,1.4545]
[1755271941704,2.23952813,4465.3,4464.3,2.23997741]
[1755271941924,4.296,4465.2,4464.4,2.23993632]
[1755271942163,4.296,4465.2,4463.1,0.55]
[1755271942322,4.17390487,4465.1,4463.9,2.24018817]
[1755271942502,4.17390487,4465.1,4462.3,4.291]
[1755271942503,2.4012304,4465.1,4462.5,4.4545]
[1755271942707,2.4012304,4465.1,4463.1,0.001]
[1755271942938,2.4012304,4465.1,4463.3,2.2404947]
[1755271943107,2.4012304,4465.1,4463.1,0.001]
[1755271943108,0.55,4464.9,4463.1,0.001]
[1755271943309,0.55,4464.9,4463.1,0.0018]
[1755271943310,0.55,4464.7,4463.1,0.0018]
[1755271943649,3.77196939,4464.4,4463.1,0.0018]
[1755271943849,0.46692461,4464.5,4463.1,0.0018]
[1755271944047,0.4572,4465.0,4464.4,2.23992345]
[1755271944209,4.301,4465.4,4463.5,3.0]
[1755271944547,0.46915187,4465.9,4464.3,0.55]
[1755271944746,0.002,4465.8,4465.6,2.2393025]
[1755271945041,0.002,4465.8,4465.4,2.23943499]
[1755271945242,0.002,4465.8,4464.2,0.55]
[1755271945422,0.002,4465.8,4464.5,3.0]
[1755271945746,0.002,4465.8,4464.8,3.0]
[1755271946046,2.23934073,4465.6,4464.0,0.001]
[1755271946343,2.23949118,4465.3,4464.0,0.001]
[1755271946655,6.69945766,4465.2,4464.0,0.001]
[1755271946847,2.24009318,4464.1,4464.0,0.001]
[1755271947061,0.02250579,4464.1,4464.0,0.001]
[1755271947356,0.48965766,4465.0,4464.0,0.001]
[1755271947651,2.23980005,4464.7,4464.0,0.001]
[1755271948044,2.23989546,4464.5,4464.0,0.001]
[1755271948267,0.46715187,4464.5,4463.1,0.0014668]
[1755271948461,4.299,4464.6,4463.1,0.0014668]
[1755271948462,4.76615187,4464.6,4463.1,0.0014668]
[1755271948639,0.112,4464.0,4463.4,2.35243561]
[1755271948856,0.112,4464.0,4463.1,2.24204521]
[1755271948857,2.69735106,4464.0,4463.1,0.0014668]
[1755271949072,0.112,4463.4,4463.1,0.0014668]
[1755271949265,0.112,4463.4,4463.3,2.2404947]
[1755271949466,0.112,4463.6,4463.1,0.0014668]
[1755271949668,0.112,4463.6,4463.2,2.2405449]
[1755271949966,0.112,4463.6,4463.1,0.0014668]
[1755271950680,1.9118,4463.5,4463.1,0.0014668]
[1755271950982,15.13670436,4463.2,4463.1,0.0014668]
[1755271951164,15.13670436,4463.2,4460.7,2.24179393]
[1755271951165,2.2405951,4463.1,4460.7,2.24179393]
[1755271951366,2.24079073,4462.8,4461.9,2.24118756]
[1755271951549,4.285,4462.7,4460.6,2.24185087]
[1755271951745,4.281,4462.6,4462.0,2.24111042]
[1755271952079,4.281,4462.6,4460.9,2.2417001]
[1755271952271,4.281,4462.6,4461.4,2.24140117]
[1755271952471,4.281,4462.6,4462.0,2.24113353]
[1755271952975,4.281,4462.6,4461.2,2.24154935]
[1755271952976,4.2802,4462.6,4461.2,2.24154935]
[1755271953180,2.24099038,4462.4,4461.5,2.24134915]
[1755271953480,2.37895187,4462.5,4461.8,2.24123173]
[1755271953847,2.37895187,4462.5,4461.5,2.24136517]
[1755271954046,0.55,4462.3,4460.0,0.102]
[1755271954372,4.29050579,4462.2,4461.3,2.24146461]
[1755271954551,4.268,4462.2,4460.1,2.24210219]
[1755271954751,0.46715187,4462.3,4460.0,1.5565]
[1755271954752,4.267,4462.1,4460.2,3.0]
[1755271954952,4.267,4462.1,4460.0,0.102]
[1755271954953,2.2412707,4461.8,4460.0,0.102]
[1755271955150,3.55,4461.6,4460.0,0.102]
[1755271955375,4.28650579,4461.5,4460.0,0.102]
[1755271955687,4.28650579,4461.5,4460.5,2.24186092]
[1755271955845,0.02250579,4461.5,4460.5,2.2418616]
[1755271956046,4.262,4461.4,4460.9,2.24168885]
[1755271956245,1.8062,4461.3,4460.1,2.24210219]
[1755271956469,1.8062,4461.3,4461.1,2.24159669]
[1755271956688,1.8062,4461.3,4460.8,2.24170816]
[1755271956689,0.446,4461.3,4460.8,2.24170816]
[1755271956891,4.262,4461.4,4460.0,0.102]
[1755271957094,4.262,4461.4,4460.8,2.24175035]
[1755271957297,2.24169396,4461.0,4460.1,2.24205254]
[1755271957479,12.89615946,4460.2,4460.0,0.102]
[1755271957788,4.26,4460.1,4460.0,0.102]
[1755271957946,4.2592,4460.4,4460.0,0.102]
[1755271958550,4.263,4460.5,4460.0,0.102]
[1755271958986,1.8062,4460.4,4460.0,0.102]
[1755271959355,0.46850579,4460.3,4460.0,0.102]
[1755271959695,0.60692,4460.4,4460.0,0.102]
[1755271959862,0.446,4461.0,4460.4,2.24192746]
[1755271960053,4.255,4460.9,4460.1,2.24209985]
[1755271960257,4.255,4460.9,4460.2,2.24204594]
[1755271960781,4.255,4460.9,4460.0,0.102]
[1755271960993,0.112,4460.4,4460.0,0.102]
[1755271961149,1.8062,4460.3,4460.0,0.102]
[1755271961354,2.35410219,4460.1,4460.0,0.102]
[1755271961746,4.16030219,4460.1,4460.0,0.102]
[1755271961951,7.8826942,4460.1,4460.0,0.102]
[1755271962384,7.71030219,4460.1,4460.0,0.102]
[1755271962780,11.95930219,4460.1,4460.0,0.102]
[1755271962964,14.16376623,4460.1,4460.0,0.102]
[1755271963162,6.25276623,4460.1,4460.0,0.102]
[1755271963515,8.37166404,4460.1,4460.0,0.102]
[1755271963988,0.112,4460.1,4460.0,2.34415246]
[1755271964574,4.249,4460.3,4460.2,2.24205192]
[1755271964773,0.112,4460.7,4460.0,0.214]
[1755271965091,4.361,4461.1,4460.4,0.112]
[1755271965384,4.361,4461.1,4460.3,3.0]
[1755271965385,0.112,4461.2,4461.0,2.24164985]
[1755271965593,0.67442,4461.9,4461.8,2.24124792]
[1755271965788,4.92342,4461.9,4461.8,2.24124792]
[1755271966154,4.249,4461.9,4461.8,2.24124792]
[1755271966348,4.249,4461.9,4460.8,3.0]
[1755271966349,5.6092,4461.9,4460.1,1.406]
[1755271966659,0.02250579,4461.8,4460.1,1.406]
[1755271966887,0.02250579,4461.8,4459.8,0.4645]
[1755271967219,0.60777058,4461.7,4459.8,0.4645]
[1755271967418,4.695,4461.9,4461.5,2.24135302]
[1755271967623,4.249,4461.9,4460.3,2.24200165]
[1755271967784,1.8062,4462.5,4460.3,2.24200165]
[1755271967785,4.249,4461.8,4460.3,2.70650165]
[1755271967985,4.249,4462.2,4461.7,2.24129593]
[1755271968178,2.25360579,4462.1,4461.3,2.2414571]
[1755271968408,2.25360579,4462.1,4460.0,0.5665]
[1755271968608,2.25360579,4462.1,4461.3,2.24149092]
[1755271968810,2.25360579,4462.1,4460.0,0.5665]
[1755271968998,2.25360579,4462.1,4461.0,2.24164349]
[1755271969197,0.65026058,4462.0,4461.0,2.24164349]
[1755271969487,2.24127715,4461.8,4461.0,2.24164349]
[1755271969783,2.24129967,4461.7,4460.8,2.24170182]
[1755271969988,2.24129967,4461.7,4460.0,0.5665]
[1755271969989,6.07770579,4461.6,4460.0,0.102]
[1755271970209,0.55,4461.4,4460.0,0.102]
[1755271970553,1.12902579,4461.3,4460.0,0.102]
[1755271970739,2.24199454,4460.4,4460.0,0.102]